bitfinex-derivatives/quotes_BTCF0:USTF0_20210102
["timestamp","ask_amount","ask_price","bid_price","bid_amount"]
[1609607307674,0.18043158,32449.0,32447.0,0.18043158]
[1609607307874,0.29653158,32449.0,32447.0,0.18043158]
[1609607308074,0.29653158,32449.0,32448.0,0.03812146]
[1609607308475,0.1161,32449.0,32448.0,0.03812146]
[1609607308677,0.1161,32449.0,32448.0,0.03774567]
[1609607308880,0.1161,32449.0,32448.0,0.00037577]
[1609607309078,0.1161,32449.0,32448.0,0.03849263]
[1609607311384,0.11609912,32449.0,32448.0,2.05812868]
[1609607311983,0.11609912,32449.0,32448.0,2.13360783]
[1609607312781,0.11609912,32449.0,32448.0,2.09549097]
[1609607312983,4.9699,32461.0,32448.0,2.09549097]
[1609607313182,4.9699,32461.0,32448.0,2.13360686]
[1609607313382,4.9699,32461.0,32449.0,0.1135943]
[1609607313582,4.9699,32461.0,32460.0,0.18043158]
[1609607313783,0.11302,32464.0,32460.0,0.18043158]
[1609607313985,0.01,32468.0,32460.0,0.18043158]
[1609607314184,0.01,32468.0,32461.0,0.03811502]
[1609607315084,0.01,32468.0,32450.0,2.09756563]
[1609607315284,0.16219,32468.0,32450.0,2.09756563]
[1609607315484,0.0915,32467.0,32462.0,0.0381168]
[1609607315689,0.18043158,32463.0,32454.0,0.18043158]
[1609607315884,1.0,32462.0,32451.0,0.07548212]
[1609607316284,1.0,32462.0,32452.0,0.03811926]
[1609607316486,3.8455,32453.0,32451.0,0.11360763]
[1609607316684,1.0,32452.0,32450.0,1.98397131]
[1609607317084,1.0,32452.0,32448.0,0.00037577]
[1609607317085,1.0,32452.0,32451.0,0.03812998]
[1609607317485,1.0,32452.0,32449.0,0.03812734]
[1609607317686,0.18043158,32450.0,32449.0,0.03812734]
[1609607318488,0.18043158,32450.0,32449.0,0.11362307]
[1609607318888,0.18043158,32450.0,32448.0,0.00037577]
[1609607319091,0.18043158,32450.0,32449.0,0.03812259]
[1609607319289,0.18043158,32450.0,32449.0,0.0003758]
[1609607319688,0.18043158,32450.0,32449.0,0.03812274]
[1609607319888,0.18043158,32450.0,32448.0,0.00037577]
[1609607320088,0.18043158,32450.0,32449.0,0.03812252]
[1609607320489,0.18043158,32450.0,32449.0,0.0003758]
[1609607321689,0.18043158,32450.0,32448.0,0.00037577]
[1609607322088,0.18043158,32450.0,32449.0,0.03812191]
[1609607322289,0.18043158,32450.0,32449.0,0.0003758]
[1609607322488,0.18043158,32450.0,32449.0,0.03812295]
[1609607322689,0.1065,32453.0,32449.0,0.03812295]
[1609607322890,1.0,32467.0,32449.0,0.0003758]
[1609607323089,1.0,32467.0,32450.0,0.03812202]
[1609607323290,1.0,32467.0,32450.0,0.0003758]
[1609607323489,1.0,32467.0,32451.0,0.03812169]
[1609607323689,1.0,32467.0,32455.0,0.18043158]
[1609607324091,1.0,32467.0,32456.0,0.03812005]
[1609607325592,0.18043158,32457.0,32456.0,0.03812005]
[1609607325793,0.30102158,32457.0,32456.0,0.03812005]
[1609607331000,0.30102158,32457.0,32445.0,0.11361399]
[1609607331200,0.30102158,32457.0,32456.0,0.03812136]
[1609607331400,0.30102158,32457.0,32446.0,0.03812028]
[1609607331602,0.12059,32457.0,32453.0,0.18043158]
[1609607332002,4.77889,32468.0,32453.0,0.18043158]
[1609607332203,4.77889,32468.0,32454.0,0.03812099]
[1609607333604,0.18043158,32455.0,32454.0,0.03812099]
[1609607333804,0.31007158,32455.0,32454.0,0.03812099]
[1609607334804,0.31007158,32455.0,32439.0,0.22685299]
[1609607335005,0.12964,32455.0,32454.0,0.03812227]
[1609607335406,0.12964,32455.0,32449.0,4.275]
[1609607335606,0.12964,32455.0,32454.0,0.18043158]
[1609607336209,0.10964,32455.0,32454.0,0.21854579]
[1609607336609,0.10964,32455.0,32454.0,2.58747009]
[1609607337210,0.10964,32455.0,32454.0,2.66294297]
[1609607338211,0.34262158,32468.0,32454.0,2.66294297]
[1609607338414,0.16219,32468.0,32455.0,1.0]
[1609607338627,0.16219,32468.0,32455.0,1.11357248]
[1609607339012,0.16219,32468.0,32456.0,0.11356535]
[1609607339312,0.16219,32468.0,32457.0,1.0]
[1609607339513,0.16219,32468.0,32457.0,1.11367]
[1609607339712,0.16219,32468.0,32467.0,0.18043158]
[1609607340114,0.16219,32468.0,32467.0,0.21853408]
[1609607342415,0.2767,32489.0,32467.0,1.21853408]
[1609607342617,3.47304453,32500.0,32467.0,1.21853408]
[1609607342815,3.47304453,32500.0,32467.0,5.73173408]
[1609607343016,3.47304453,32500.0,32468.0,0.11353436]
[1609607343217,3.47304453,32500.0,32469.0,1.0]
[1609607343818,3.47304453,32500.0,32470.0,0.03809139]
[1609607344220,3.47304453,32500.0,32470.0,1.03809139]
[1609607344420,3.47304453,32500.0,32471.0,0.03771532]
[1609607344621,3.47304453,32500.0,32471.0,0.03808988]
[1609607344821,4.9246,32498.0,32471.0,0.03808988]
[1609607345021,5.9246,32498.0,32468.0,0.11353137]
[1609607345222,5.9246,32498.0,32471.0,2.31424552]
[1609607345821,0.03,32492.0,32472.0,0.11353877]
[1609607346222,0.03,32492.0,32472.0,2.0813644]
[1609607346622,0.03,32492.0,32473.0,0.03809707]
[1609607349823,0.03,32492.0,32482.0,0.18043158]
[1609607350223,0.03,32492.0,32483.0,0.00037458]
[1609607352129,0.03,32492.0,32478.0,0.00037458]
[1609607352329,0.03,32492.0,32488.0,0.18043158]
[1609607352731,0.03,32492.0,32489.0,0.00037456]
[1609607354735,0.03,32492.0,32491.0,0.18043158]
[1609607355235,0.03,32492.0,32491.0,0.18080606]
[1609607356838,0.03,32492.0,32491.0,0.00037448]
[1609607357238,0.03,32492.0,32491.0,0.18080606]
[1609607357438,0.03,32492.0,32491.0,1.18043158]
[1609607357637,0.03,32492.0,32491.0,1.18080599]
[1609607357839,0.03,32492.0,32491.0,1.29390901]
[1609607358840,3.47304453,32500.0,32491.0,1.29390901]
[1609607359041,3.47304453,32500.0,32491.0,5.61300901]
[1609607359240,3.47304453,32500.0,32491.0,5.43257743]
[1609607359441,3.47304453,32500.0,32492.0,0.11338635]
[1609607359640,3.47304453,32500.0,32493.0,1.0]
[1609607359841,3.47304453,32500.0,32499.0,0.18043158]
[1609607360041,3.47304453,32500.0,32499.0,0.31708158]
[1609607360242,3.47304453,32500.0,32499.0,0.35514831]
[1609607360442,3.47304453,32500.0,32499.0,0.98874831]
[1609607360842,3.47304453,32500.0,32499.0,1.06413066]
[1609607361043,3.47304453,32500.0,32499.0,0.98874831]
[1609607361243,3.47304453,32500.0,32499.0,1.06413074]
[1609607361442,3.47304453,32500.0,32499.0,0.43053074]
[1609607361642,3.36854453,32500.0,32499.0,0.35514831]
[1609607361842,3.36854453,32500.0,32499.0,1.17471673]
[1609607362043,3.36854453,32500.0,32499.0,1.13702432]
[1609607362243,3.36854453,32500.0,32499.0,1.3174559]
[1609607362444,3.36854453,32500.0,32499.0,1.35514346]
[1609607363243,3.36854453,32500.0,32499.0,1.3174559]
[1609607364246,2.48994453,32500.0,32499.0,1.3174559]
[1609607364445,2.48994453,32500.0,32499.0,1.13702432]
[1609607364646,2.48994453,32500.0,32499.0,1.17470521]
[1609607364846,2.48994453,32500.0,32499.0,1.35513679]
[1609607366650,2.48994365,32500.0,32499.0,1.35513679]
[1609607366847,2.48994365,32500.0,32499.0,1.17470521]
[1609607367348,2.48994365,32500.0,32499.0,1.35513679]
[1609607367950,2.48994316,32500.0,32499.0,10.04005244]
[1609607369351,2.48994316,32500.0,32499.0,9.85962086]
[1609607369951,2.48994316,32500.0,32499.0,10.04005244]
[1609607370151,2.48994228,32500.0,32499.0,5.35019799]
[1609607371152,1.41264228,32500.0,32499.0,5.35019799]
[1609607371353,1.41264179,32500.0,32499.0,3.26581823]
[1609607371952,1.41264129,32500.0,32499.0,3.08538665]
[1609607372152,1.41264129,32500.0,32499.0,3.11538665]
[1609607372354,1.41264129,32500.0,32499.0,3.29581823]
[1609607372856,1.41264129,32500.0,32499.0,5.381874]
[1609607373455,1.39684129,32500.0,32499.0,3.29581823]
[1609607374056,1.39684129,32500.0,32499.0,5.38542606]
[1609607374456,1.39684129,32500.0,32499.0,5.20499448]
[1609607374858,0.51180129,32500.0,32499.0,5.20499448]
[1609607375056,0.51180129,32500.0,32499.0,5.38542606]
[1609607375558,0.51180129,32500.0,32499.0,5.46074636]
[1609607375759,0.51180129,32500.0,32499.0,5.38542606]
[1609607376159,0.51180129,32500.0,32499.0,5.46074403]
[1609607376360,0.5118008,32500.0,32499.0,5.46074403]
[1609607376961,0.5118008,32500.0,32499.0,5.28031245]
[1609607377364,0.51180031,32500.0,32499.0,5.28031245]
[1609607377561,0.51180031,32500.0,32499.0,5.46074403]
[1609607378162,2.54207623,32528.0,32499.0,7.70588656]
[1609607378562,2.54207623,32528.0,32500.0,0.11332003]
[1609607378762,2.54207623,32528.0,32501.0,1.0]
[1609607379166,2.54207623,32528.0,32502.0,0.11331877]
[1609607379363,2.54207623,32528.0,32503.0,1.0]
[1609607379564,3.11878301,32514.0,32503.0,1.0]
[1609607379965,3.11878301,32514.0,32513.0,0.18043158]
[1609607380166,3.11878301,32514.0,32513.0,1.29174158]
[1609607380365,3.11878301,32514.0,32513.0,1.40505151]
[1609607381165,3.11878213,32514.0,32513.0,3.29243653]
[1609607381965,3.11878213,32514.0,32513.0,3.11200495]
[1609607382166,3.11878164,32514.0,32513.0,3.11200495]
[1609607382365,2.12629164,32514.0,32513.0,3.11200495]
[1609607382567,2.12629164,32514.0,32513.0,3.29243653]
[1609607382765,1.62929164,32514.0,32513.0,3.29243653]
[1609607382966,1.62929164,32514.0,32513.0,5.35221718]
[1609607384071,1.62929115,32514.0,32513.0,5.35221718]
[1609607384471,1.62929066,32514.0,32513.0,5.1717856]
[1609607385072,1.62929066,32514.0,32513.0,5.35221718]
[1609607385872,1.13979066,32514.0,32513.0,5.35221718]
[1609607386473,1.13979017,32514.0,32513.0,5.35221718]
[1609607387076,1.13978968,32514.0,32513.0,7.40441664]
[1609607387677,1.13978968,32514.0,32513.0,7.58484822]
[1609607389579,1.13978968,32514.0,32513.0,7.40441664]
[1609607390182,1.13978968,32514.0,32513.0,7.58484822]
[1609607390779,1.12568968,32514.0,32513.0,7.58484822]
[1609607391783,0.60868968,32514.0,32513.0,7.58484822]
[1609607392183,0.60868968,32514.0,32513.0,7.40441664]
[1609607392583,0.60868968,32514.0,32513.0,7.58484822]
[1609607394284,0.60868968,32514.0,32513.0,7.40441664]
[1609607394885,0.60868968,32514.0,32513.0,7.58484822]
[1609607395887,0.60868919,32514.0,32513.0,7.58484822]
[1609607396887,0.60868919,32514.0,32513.0,7.40441664]
[1609607397387,0.60868919,32514.0,32513.0,7.58484822]
[1609607397588,0.60868919,32514.0,32513.0,11.13104822]
[1609607397989,0.60868919,32514.0,32513.0,7.58484822]
[1609607398388,0.60868919,32514.0,32513.0,11.10324822]
[1609607399489,0.60868919,32514.0,32513.0,10.92281664]
[1609607399690,0.60868919,32514.0,32513.0,7.40441664]
[1609607400090,0.60868919,32514.0,32513.0,6.58484822]
[1609607400893,0.60868919,32514.0,32513.0,7.58484822]
[1609607401290,0.60868919,32514.0,32513.0,1.40505151]
[1609607401291,0.6086887,32514.0,32513.0,1.40505151]
[1609607402092,0.6086887,32514.0,32513.0,1.22461993]
[1609607402494,0.60868782,32514.0,32513.0,1.40505151]
[1609607403094,0.60868733,32514.0,32513.0,1.40505151]
[1609607404596,0.60868733,32514.0,32513.0,1.22461993]
[1609607404996,0.60868733,32514.0,32513.0,1.40505151]
[1609607408098,0.50868733,32514.0,32513.0,0.40505151]
[1609607408298,2.54207623,32528.0,32513.0,0.40505151]
[1609607408500,2.54207623,32528.0,32514.0,1.0]
[1609607408899,2.54207623,32528.0,32515.0,0.07559295]
[1609607409099,2.54207623,32528.0,32527.0,0.18043158]
[1609607409301,2.54207623,32528.0,32527.0,1.18043158]
[1609607409499,2.54207623,32528.0,32527.0,1.29362731]
[1609607410499,2.54207623,32528.0,32527.0,1.40479731]
[1609607411102,2.54207508,32528.0,32527.0,7.55946384]
[1609607411701,2.54207508,32528.0,32527.0,7.6722795]
[1609607412102,2.44207508,32528.0,32527.0,7.6722795]
[1609607412302,2.44207459,32528.0,32527.0,7.6722795]
[1609607412702,2.44207371,32528.0,32527.0,10.57989014]
[1609607413203,2.44207322,32528.0,32527.0,10.57989014]
[1609607413805,2.44207273,32528.0,32527.0,7.6722795]
[1609607415707,2.44207223,32528.0,32527.0,7.6722795]
[1609607416809,2.44207174,32528.0,32527.0,7.6722795]
[1609607417410,2.44207125,32528.0,32527.0,7.6722795]
[1609607417611,1.42257125,32528.0,32527.0,7.6722795]
[1609607417811,1.25597125,32528.0,32527.0,7.6722795]
[1609607418310,1.25597076,32528.0,32527.0,7.6722795]
[1609607420414,1.25597027,32528.0,32527.0,7.6722795]
[1609607424819,1.25596978,32528.0,32527.0,7.6722795]
[1609607425218,1.15596978,32528.0,32527.0,6.6722795]
[1609607425819,1.15596978,32528.0,32527.0,7.6722795]
[1609607426821,1.15596929,32528.0,32527.0,7.6722795]
[1609607427822,1.1559688,32528.0,32527.0,7.6722795]
[1609607428622,1.15596831,32528.0,32527.0,7.6722795]
[1609607429225,1.15596782,32528.0,32527.0,7.6722795]
[1609607430031,1.15596733,32528.0,32527.0,7.6722795]
[1609607430428,1.15596684,32528.0,32527.0,7.6722795]
[1609607431427,1.15596684,32528.0,32527.0,7.49184792]
[1609607432828,1.15596635,32528.0,32527.0,7.49184792]
[1609607433029,1.15596635,32528.0,32527.0,7.6722795]
[1609607433630,1.11817393,32528.0,32527.0,7.6722795]
[1609607434232,1.11053044,32528.0,32527.0,7.6722795]
[1609607434831,1.11052956,32528.0,32527.0,7.6722795]
[1609607436033,1.11052907,32528.0,32527.0,7.6722795]
[1609607437836,1.11052769,32528.0,32527.0,7.6722795]
[1609607438635,1.1105272,32528.0,32527.0,7.6722795]
[1609607439836,1.11052632,32528.0,32527.0,7.6722795]
[1609607441139,1.11052583,32528.0,32527.0,7.6722795]
[1609607442038,1.11052534,32528.0,32527.0,7.6722795]
[1609607442838,1.01052534,32528.0,32527.0,7.6722795]
[1609607443238,1.01052485,32528.0,32527.0,7.6722795]
[1609607444239,1.01052436,32528.0,32527.0,7.6722795]
[1609607444439,1.01052436,32528.0,32527.0,7.49184792]
[1609607445241,1.01052436,32528.0,32527.0,7.6722795]
[1609607445645,1.01052348,32528.0,32527.0,7.6722795]
[1609607445843,1.01052348,32528.0,32527.0,7.8022795]
[1609607447047,1.01003442,32528.0,32527.0,7.8022795]
[1609607447644,1.01003392,32528.0,32527.0,7.8022795]
[1609607449147,1.01003304,32528.0,32527.0,7.8022795]
[1609607450146,1.01003255,32528.0,32527.0,7.8022795]
[1609607450547,1.01003206,32528.0,32527.0,7.8022795]
[1609607451748,1.01003156,32528.0,32527.0,7.8022795]
[1609607452551,1.01003107,32528.0,32527.0,7.8022795]
[1609607455351,1.01003058,32528.0,32527.0,7.8022795]
[1609607455952,1.01003058,32528.0,32527.0,11.7834795]
[1609607458554,1.0100297,32528.0,32527.0,11.7834795]
[1609607459358,1.01002921,32528.0,32527.0,11.7834795]
[1609607459756,1.01002872,32528.0,32527.0,11.7834795]
[1609607460958,1.01002822,32528.0,32527.0,11.7834795]
[1609607461360,0.91002822,32528.0,32527.0,11.7834795]
[1609607462464,0.91002773,32528.0,32527.0,11.7834795]
[1609607462871,0.91002724,32528.0,32527.0,11.7834795]
[1609607463664,0.91002675,32528.0,32527.0,11.7834795]
[1609607464267,0.91002626,32528.0,32527.0,11.7834795]
[1609607466868,0.91002626,32528.0,32527.0,7.8022795]
[1609607468072,0.91002577,32528.0,32527.0,7.8022795]
[1609607468672,0.91002577,32528.0,32527.0,12.7223795]
[1609607469273,0.91002528,32528.0,32527.0,12.7223795]
[1609607469973,0.91002479,32528.0,32527.0,12.7223795]
[1609607470474,0.9100243,32528.0,32527.0,12.7223795]
[1609607470874,0.9100238,32528.0,32527.0,12.7223795]
[1609607471374,0.8100238,32528.0,32527.0,12.7223795]
[1609607472476,0.81002331,32528.0,32527.0,12.7223795]
[1609607473777,0.81002282,32528.0,32527.0,12.7223795]
[1609607474077,0.81002233,32528.0,32527.0,12.7223795]
[1609607476079,0.81002184,32528.0,32527.0,12.7223795]
[1609607479485,0.81002184,32528.0,32527.0,7.8022795]
[1609607481789,0.81002096,32528.0,32527.0,7.8022795]
[1609607482488,0.81002047,32528.0,32527.0,7.8022795]
[1609607483689,0.81001997,32528.0,32527.0,7.8022795]
[1609607484590,0.81001948,32528.0,32527.0,7.8022795]
[1609607485893,0.71001948,32528.0,32527.0,6.8022795]
[1609607486496,0.71001948,32528.0,32527.0,7.8022795]
[1609607486999,0.7100186,32528.0,32527.0,7.8022795]
[1609607488201,0.71001772,32528.0,32527.0,7.8022795]
[1609607490605,0.71001723,32528.0,32527.0,7.8022795]
[1609607491708,0.71001674,32528.0,32527.0,7.8022795]
[1609607492007,0.74001674,32528.0,32527.0,7.8022795]
[1609607492507,0.74001536,32528.0,32527.0,7.8022795]
[1609607493110,0.74001487,32528.0,32527.0,7.8022795]
[1609607493808,0.74001438,32528.0,32527.0,7.8022795]
[1609607494707,0.74001389,32528.0,32527.0,7.8022795]
[1609607499514,0.7400134,32528.0,32527.0,7.8022795]
[1609607500213,0.6400134,32528.0,32527.0,6.8022795]
[1609607500817,0.6400134,32528.0,32527.0,7.8022795]
[1609607503221,0.64001252,32528.0,32527.0,7.8022795]
[1609607504123,0.64001203,32528.0,32527.0,7.8022795]
[1609607504724,0.64001154,32528.0,32527.0,7.8022795]
[1609607505324,0.64001104,32528.0,32527.0,7.8022795]
[1609607510730,0.64001055,32528.0,32527.0,7.8022795]
[1609607511332,0.64001006,32528.0,32527.0,12.25423205]
[1609607512031,0.64000957,32528.0,32527.0,12.25423205]
[1609607514137,0.64000907,32528.0,32527.0,12.25423205]
[1609607515639,0.64000907,32528.0,32527.0,11.25423205]
[1609607516038,0.64000907,32528.0,32527.0,12.25423205]
[1609607516439,0.64000858,32528.0,32527.0,7.8022795]
[1609607517241,0.64000809,32528.0,32527.0,7.8022795]
[1609607519445,0.64000721,32528.0,32527.0,7.8022795]
[1609607519842,0.64000672,32528.0,32527.0,7.8022795]
[1609607520942,0.64000623,32528.0,32527.0,7.8022795]
[1609607521442,0.64000623,32528.0,32527.0,12.05871439]
[1609607521642,0.64000573,32528.0,32527.0,12.05871439]
[1609607521842,0.64000524,32528.0,32527.0,12.05871439]
[1609607522044,0.51000524,32528.0,32527.0,11.92871439]
[1609607523947,0.51000475,32528.0,32527.0,11.92871439]
[1609607524548,0.51000426,32528.0,32527.0,11.92871439]
[1609607525051,0.51000377,32528.0,32527.0,11.92871439]
[1609607525248,0.51000377,32528.0,32527.0,10.92871439]
[1609607525648,5.23330377,32528.0,32527.0,10.92871439]
[1609607527253,5.23330377,32528.0,32517.0,1.0]
[1609607527452,5.23330377,32528.0,32527.0,0.18043158]
[1609607527661,5.23330328,32528.0,32527.0,0.18043158]
[1609607527851,5.23330328,32528.0,32527.0,0.03798079]
[1609607528552,5.23330328,32528.0,32517.0,0.03798405]
[1609607528751,5.23330328,32528.0,32527.0,0.03798364]
[1609607528951,5.23330328,32528.0,32518.0,0.03798341]
[1609607529352,5.23330328,32528.0,32527.0,0.03798365]
[1609607529553,5.23330328,32528.0,32527.0,0.16043158]
[1609607529752,5.23330328,32528.0,32527.0,0.19841509]
[1609607529953,5.23330279,32528.0,32513.0,0.11131]
[1609607530151,5.23330279,32528.0,32527.0,0.15184]
[1609607530953,5.2333023,32528.0,32505.0,0.0752121]
[1609607531353,5.2333023,32528.0,32503.0,0.1771]
[1609607531553,5.2333023,32528.0,32527.0,0.18043158]
[1609607531954,5.23330181,32528.0,32527.0,0.21841844]
[1609607532354,5.23330132,32528.0,32527.0,0.40646392]
[1609607534259,0.51000132,32528.0,32527.0,0.40646392]
[1609607534661,0.51000083,32528.0,32527.0,0.40646392]
[1609607534959,0.51000033,32528.0,32527.0,0.40646392]
[1609607535762,0.50999984,32528.0,32527.0,0.40646392]
[1609607535961,0.50999984,32528.0,32527.0,1.40646392]
[1609607536361,0.50999984,32528.0,32527.0,1.52863392]
[1609607537364,0.50999935,32528.0,32527.0,3.73296334]
[1609607538465,0.50999886,32528.0,32527.0,8.13305627]
[1609607539667,0.50999886,32528.0,32527.0,8.68455627]
[1609607540065,0.47999886,32528.0,32527.0,8.68455627]
[1609607540266,0.47999837,32528.0,32527.0,8.68455627]
[1609607541367,0.37999837,32528.0,32527.0,8.68455627]
[1609607541567,0.37999749,32528.0,32527.0,8.68455627]
[1609607542669,0.379997,32528.0,32527.0,8.68455627]
[1609607543068,0.231697,32528.0,32527.0,8.68455627]
[1609607543769,0.23169651,32528.0,32527.0,8.68455627]
[1609607544470,0.23169651,32528.0,32527.0,8.13305627]
[1609607546875,0.23169601,32528.0,32527.0,8.13305627]
[1609607548077,0.23169552,32528.0,32527.0,8.13305627]
[1609607548879,0.23169503,32528.0,32527.0,8.13305627]
[1609607550277,0.26169454,32528.0,32527.0,8.13305627]
[1609607550878,0.26169405,32528.0,32527.0,8.13305627]
[1609607552178,0.26169355,32528.0,32527.0,8.13305627]
[1609607553079,0.26169306,32528.0,32527.0,8.13305627]
[1609607553481,0.26169257,32528.0,32527.0,8.13305627]
[1609607555087,0.26169208,32528.0,32527.0,8.13305627]
[1609607555788,0.2616912,32528.0,32527.0,8.13305627]
[1609607556387,0.1616912,32528.0,32527.0,7.13305627]
[1609607556588,0.1616912,32528.0,32527.0,10.81905627]
[1609607556987,0.1616912,32528.0,32527.0,11.81905627]
[1609607557788,0.1616912,32528.0,32527.0,8.13305627]
[1609607558488,0.16169071,32528.0,32527.0,8.13305627]
[1609607559790,0.16168901,32528.0,32527.0,8.13305627]
[1609607560690,0.16168852,32528.0,32527.0,8.13305627]
[1609607561794,0.16168803,32528.0,32527.0,8.13305627]
[1609607562593,0.16168754,32528.0,32527.0,8.13305627]
[1609607567403,0.16168666,32528.0,32527.0,8.13305627]
[1609607568403,0.16168666,32528.0,32527.0,8.11435627]
[1609607574010,0.16168549,32528.0,32527.0,8.11435627]
[1609607574812,0.161685,32528.0,32527.0,8.11435627]
[1609607575413,0.16168451,32528.0,32527.0,8.11435627]
[1609607577415,0.16168401,32528.0,32527.0,8.11435627]
[1609607578015,0.16168352,32528.0,32527.0,8.11435627]
[1609607578217,0.16168303,32528.0,32527.0,8.11435627]
[1609607580918,0.16168254,32528.0,32527.0,8.11435627]
[1609607581719,0.16168205,32528.0,32527.0,8.11435627]
[1609607582120,0.16168205,32528.0,32527.0,8.14435627]
[1609607582821,0.16168117,32528.0,32527.0,8.14435627]
[1609607583724,0.16168029,32528.0,32527.0,8.14435627]
[1609607585425,0.1616798,32528.0,32527.0,8.14435627]
[1609607588128,0.16167931,32528.0,32527.0,8.14435627]
[1609607589732,0.16167881,32528.0,32527.0,8.14435627]
[1609607591936,0.16167832,32528.0,32527.0,8.14435627]
[1609607592636,3.44462792,32542.0,32527.0,8.14435627]
[1609607593038,3.44462792,32542.0,32528.0,0.22578693]
[1609607593238,3.44462792,32542.0,32529.0,1.0]
[1609607593643,3.44462792,32542.0,32530.0,0.11308139]
[1609607593838,3.44462792,32542.0,32541.0,0.18043158]
[1609607594038,3.44462792,32542.0,32541.0,1.18043158]
[1609607594440,3.44462792,32542.0,32541.0,1.29351103]
[1609607595540,3.44462792,32542.0,32541.0,1.43463103]
[1609607598646,2.99469694,32542.0,32541.0,1.43463103]
[1609607600550,0.99469195,32542.0,32541.0,7.9195707]
[1609607600950,0.99469195,32542.0,32541.0,8.03228026]
[1609607602753,0.99469195,32542.0,32541.0,7.03228026]
[1609607603755,0.99469195,32542.0,32541.0,8.03228026]
[1609607605555,0.99469195,32542.0,32541.0,7.03228026]
[1609607608961,5.17869195,32542.0,32541.0,7.03228026]
[1609607609863,5.17869195,32542.0,32541.0,0.18043158]
[1609607610264,5.17869195,32542.0,32541.0,0.30508158]
[1609607610666,5.17869195,32542.0,32541.0,0.34304124]
[1609607612466,5.17869195,32542.0,32531.0,0.1771]
[1609607612668,5.17869195,32542.0,32532.0,0.1771]
[1609607613269,5.17869195,32542.0,32533.0,0.03796327]
[1609607613668,5.17869058,32542.0,32533.0,0.03796327]
[1609607613868,0.99469058,32542.0,32541.0,0.18043158]
[1609607614269,0.99469009,32542.0,32541.0,0.21839517]
[1609607614869,0.9946896,32542.0,32541.0,0.21839517]
[1609607616874,0.99468911,32542.0,32541.0,0.21839517]
[1609607617275,5.61398911,32542.0,32541.0,0.21839517]
[1609607622279,5.61398862,32542.0,32541.0,0.21839517]
[1609607624680,5.61398813,32542.0,32541.0,0.21839517]
[1609607625680,5.61398763,32542.0,32541.0,0.21839517]
[1609607638903,5.61398714,32542.0,32541.0,0.21839517]
[1609607639601,5.61398665,32542.0,32541.0,0.21839517]
[1609607641403,0.99468665,32542.0,32541.0,1.21839517]
[1609607641803,0.99468665,32542.0,32541.0,1.29355805]
[1609607642403,0.99468665,32542.0,32541.0,0.29355805]
[1609607642806,0.99468665,32542.0,32541.0,0.21839517]
[1609607643205,0.99468665,32542.0,32541.0,1.21839517]
[1609607643407,0.99468577,32542.0,32541.0,1.21839517]
[1609607643608,0.99468577,32542.0,32541.0,1.29354718]
[1609607644109,0.99468577,32542.0,32541.0,0.29354718]
[1609607644708,0.99468528,32542.0,32541.0,0.21839517]
[1609607645709,0.99468479,32542.0,32541.0,0.21839517]
[1609607647512,0.98149668,32542.0,32541.0,0.21839517]
[1609607648312,0.98149668,32542.0,32537.0,3.97626215]
[1609607648512,5.51179668,32542.0,32514.0,3.7608]
[1609607648915,5.51179668,32542.0,32533.0,0.03796735]
[1609607649317,0.98149668,32542.0,32533.0,0.03796735]
[1609607649516,4.9413,32534.0,32527.0,0.54602608]
[1609607649716,4.9213,32534.0,32527.0,0.19002608]
[1609607649916,0.0917,32533.0,32528.0,0.03797214]
[1609607650115,0.0917,32533.0,32532.0,0.18043158]
[1609607650316,4.92129951,32534.0,32532.0,0.18043158]
[1609607650516,4.92129951,32534.0,32532.0,0.21840699]
[1609607650717,4.92129951,32534.0,32533.0,0.03797573]
[1609607650917,4.92129951,32534.0,32511.0,0.356]
[1609607651316,0.0922,32533.0,32511.0,0.356]
[1609607651517,4.92129951,32534.0,32512.0,0.03797691]
[1609607652116,4.92129951,32534.0,32533.0,0.18043158]
[1609607652517,0.2756,32541.0,32533.0,6.72664016]
[1609607652918,3.89309883,32538.0,32533.0,6.72664016]
[1609607653117,3.89309883,32538.0,32534.0,0.22599895]
[1609607653317,3.89309883,32538.0,32534.0,0.23599895]
[1609607653717,0.0923,32537.0,32534.0,0.23599895]
[1609607653918,0.0923,32537.0,32535.0,0.03797329]
[1609607654119,3.89309883,32538.0,32535.0,0.03797329]
[1609607655218,3.88499883,32538.0,32535.0,0.03797329]
[1609607655418,0.98149668,32542.0,32535.0,0.03797329]
[1609607655620,3.5944,32535.0,32511.0,0.356]
[1609607655820,1.0,32534.0,32511.0,0.356]
[1609607656019,1.0,32534.0,32531.0,0.18043158]
[1609607656420,1.0,32534.0,32532.0,0.03798286]
[1609607656820,3.5944,32535.0,32532.0,0.03798286]
[1609607658121,0.18043158,32533.0,32532.0,0.03798286]
[1609607658521,0.18043158,32533.0,32501.0,0.18802775]
[1609607659122,0.18043158,32533.0,32511.0,0.03798716]
[1609607660122,1.0,32535.0,32530.0,0.18043158]
[1609607660323,4.0665,32517.0,32511.0,0.03798716]
[1609607660522,1.0,32540.0,32511.0,0.03798716]
[1609607660723,4.0589,32518.0,32511.0,0.03798716]
[1609607660923,1.0,32533.0,32511.0,0.03798716]
[1609607661124,4.5575,32517.0,32511.0,0.03798716]
[1609607662025,1.0,32533.0,32511.0,0.03798716]
[1609607662224,4.7226,32512.0,32500.0,0.1771]
[1609607662423,4.7226,32512.0,32501.0,0.07562437]
[1609607662623,4.7226,32512.0,32501.0,0.03800021]
[1609607663023,4.7226,32512.0,32502.0,0.03799882]
[1609607663624,4.7226,32512.0,32501.0,0.03799903]
[1609607663826,4.7226,32512.0,32503.0,0.03799905]
[1609607664025,4.7226,32512.0,32502.0,0.03799907]
[1609607664226,4.72259951,32512.0,32511.0,0.18043158]
[1609607664626,4.72259951,32512.0,32511.0,0.21842951]
[1609607665225,0.18043158,32517.0,32511.0,0.21842951]
[1609607665627,1.0,32540.0,32512.0,0.03799551]
[1609607665825,4.7703,32533.0,32512.0,0.03799551]
[1609607666226,0.18043109,32522.0,32521.0,0.18043158]
[1609607666427,0.86053109,32522.0,32521.0,0.21842586]
[1609607666829,0.1804302,32522.0,32521.0,6.68525479]
[1609607667028,3.8383,32541.0,32521.0,6.68525479]
[1609607667230,3.83829951,32541.0,32521.0,6.87333431]
[1609607667432,3.5554,32541.0,32522.0,0.22601434]
[1609607668129,3.5554,32541.0,32536.0,0.18043158]
[1609607668330,3.5554,32541.0,32540.0,6.48379361]
[1609607668532,1.0,32556.0,32540.0,6.48379361]
[1609607668734,3.4916,32550.0,32541.0,0.22598097]
[1609607668933,0.98149619,32542.0,32541.0,0.22598097]
[1609607669633,1.69349619,32542.0,32541.0,0.22598097]
[1609607669836,0.98149619,32542.0,32533.0,3.24189681]
[1609607670035,5.032,32539.0,32533.0,3.24189681]
[1609607670236,0.18043158,32534.0,32533.0,3.24189681]
[1609607670636,0.18043158,32534.0,32533.0,3.46788691]
[1609607670938,0.18043109,32534.0,32533.0,0.2259901]